[Event "Late-Titled-Tuesday-Blitz-February-06-2024"]
[Site "Chess.com"]
[Date "2024.02.06"]
[Round "3"]
[White "arenal72"]
[Black "wild3000"]
[Result "1-0"]
[WhiteElo "2591"]
[BlackElo "2350"]
[TimeControl "180+1"]
[EndTime "14:30:41 PST"]
[Termination "arenal72 won by checkmate"]

1. Nf3 {[%clk 0:03:00.9]} 1... d5 {[%clk 0:02:41.8]} 2. g3 {[%clk 0:03:00.5]}
2... Nf6 {[%clk 0:02:40.7]} 3. Bg2 {[%clk 0:03:00.6]} 3... g6 {[%clk 0:02:40.6]}
4. O-O {[%clk 0:03:00.7]} 4... Bg7 {[%clk 0:02:40.9]} 5. d3 {[%clk 0:02:53.2]}
5... O-O {[%clk 0:02:40.8]} 6. Nbd2 {[%clk 0:02:53.2]} 6... Nc6 {[%clk 0:02:35]}
7. e4 {[%clk 0:02:51.9]} 7... dxe4 {[%clk 0:02:35.1]} 8. dxe4 {[%clk 0:02:52.8]}
8... e5 {[%clk 0:02:35.4]} 9. c3 {[%clk 0:02:50.3]} 9... Bg4 {[%clk 0:02:24.6]}
10. h3 {[%clk 0:02:46]} 10... Be6 {[%clk 0:02:24.3]} 11. Qe2 {[%clk 0:02:45.5]}
11... Qe7 {[%clk 0:02:21]} 12. Nc4 {[%clk 0:02:35.4]} 12... Qc5 {[%clk
0:02:08.4]} 13. Na3 {[%clk 0:02:13.7]} 13... Rad8 {[%clk 0:01:42]} 14. Be3
{[%clk 0:02:00.6]} 14... Qe7 {[%clk 0:01:41.3]} 15. Nd2 {[%clk 0:01:52.4]} 15...
a6 {[%clk 0:01:33.6]} 16. Rfd1 {[%clk 0:01:49.3]} 16... Rd7 {[%clk 0:01:25]} 17.
Nb3 {[%clk 0:01:48.7]} 17... Rfd8 {[%clk 0:01:22.6]} 18. Rxd7 {[%clk 0:01:42.9]}
18... Nxd7 {[%clk 0:01:18.6]} 19. Rd1 {[%clk 0:01:35.5]} 19... h6 {[%clk
0:01:06]} 20. Nc4 {[%clk 0:01:13.5]} 20... Kh7 {[%clk 0:00:48.9]} 21. Nca5
{[%clk 0:01:12.4]} 21... Nxa5 {[%clk 0:00:48.5]} 22. Nxa5 {[%clk 0:01:13.3]}
22... Bxa2 {[%clk 0:00:37.9]} 23. Nxb7 {[%clk 0:01:12.4]} 23... Ra8 {[%clk
0:00:33.8]} 24. Qd3 {[%clk 0:01:02.4]} 24... Be6 {[%clk 0:00:31.2]} 25. b4
{[%clk 0:00:54.9]} 25... Nb6 {[%clk 0:00:20]} 26. Bc5 {[%clk 0:00:53.9]} 26...
Qe8 {[%clk 0:00:19.1]} 27. Na5 {[%clk 0:00:51.2]} 27... Bf8 {[%clk 0:00:17.5]}
28. Bxf8 {[%clk 0:00:48.6]} 28... Qxf8 {[%clk 0:00:17.9]} 29. Bf1 {[%clk
0:00:48.2]} 29... Kg7 {[%clk 0:00:16.6]} 30. Qe3 {[%clk 0:00:45.6]} 30... Rd8
{[%clk 0:00:15.2]} 31. Rxd8 {[%clk 0:00:41.6]} 31... Qxd8 {[%clk 0:00:16.1]} 32.
Bxa6 {[%clk 0:00:41.6]} 32... Qd1+ {[%clk 0:00:14.9]} 33. Kg2 {[%clk 0:00:40.1]}
33... Qc2 {[%clk 0:00:14.9]} 34. Be2 {[%clk 0:00:32.3]} 34... Qb2 {[%clk
0:00:13.4]} 35. Bf3 {[%clk 0:00:30.5]} 35... h5 {[%clk 0:00:11.5]} 36. Qc5
{[%clk 0:00:28]} 36... Na4 {[%clk 0:00:10.9]} 37. Qxe5+ {[%clk 0:00:27.6]} 37...
Kg8 {[%clk 0:00:09.9]} 38. Qxc7 {[%clk 0:00:25.3]} 38... Nxc3 {[%clk 0:00:10.1]}
39. Qb8+ {[%clk 0:00:22.6]} 39... Kg7 {[%clk 0:00:09.9]} 40. Qe5+ {[%clk
0:00:22]} 40... Kg8 {[%clk 0:00:09]} 41. Nc6 {[%clk 0:00:22.2]} 41... Na4 {[%clk
0:00:08.5]} 42. Qxb2 {[%clk 0:00:18.8]} 42... Nxb2 {[%clk 0:00:09.4]} 43. b5
{[%clk 0:00:19.7]} 43... Nc4 {[%clk 0:00:08.9]} 44. Nd4 {[%clk 0:00:19.7]} 44...
Nb6 {[%clk 0:00:06.5]} 45. Nxe6 {[%clk 0:00:19.1]} 45... fxe6 {[%clk 0:00:07.4]}
46. Kf1 {[%clk 0:00:18.7]} 46... Kf7 {[%clk 0:00:07.2]} 47. Ke2 {[%clk
0:00:19.2]} 47... Kf6 {[%clk 0:00:07.5]} 48. Ke3 {[%clk 0:00:16.9]} 48... Ke5
{[%clk 0:00:07.7]} 49. Be2 {[%clk 0:00:17.1]} 49... Kd6 {[%clk 0:00:05.9]} 50.
Kf4 {[%clk 0:00:17.4]} 50... Ke7 {[%clk 0:00:03.6]} 51. Kg5 {[%clk 0:00:17.7]}
51... Kf7 {[%clk 0:00:04]} 52. f4 {[%clk 0:00:18]} 52... Nd7 {[%clk 0:00:03.6]}
53. f5 {[%clk 0:00:12.7]} 53... gxf5 {[%clk 0:00:03.5]} 54. Bxh5+ {[%clk
0:00:11.5]} 54... Ke7 {[%clk 0:00:03.2]} 55. exf5 {[%clk 0:00:11.8]} 55... exf5
{[%clk 0:00:03.6]} 56. Kxf5 {[%clk 0:00:12.4]} 56... Kd6 {[%clk 0:00:02.6]} 57.
Be2 {[%clk 0:00:12.2]} 57... Nb6 {[%clk 0:00:01.7]} 58. h4 {[%clk 0:00:12.2]}
58... Nd5 {[%clk 0:00:02.6]} 59. h5 {[%clk 0:00:12.3]} 59... Ne7+ {[%clk
0:00:03.2]} 60. Kg5 {[%clk 0:00:11]} 60... Ke6 {[%clk 0:00:02.9]} 61. g4 {[%clk
0:00:11]} 61... Nc8 {[%clk 0:00:02.4]} 62. h6 {[%clk 0:00:09.9]} 62... Ke7
{[%clk 0:00:03.3]} 63. h7 {[%clk 0:00:09.8]} 63... Kf7 {[%clk 0:00:03.7]} 64.
h8=Q {[%clk 0:00:10.2]} 64... Ne7 {[%clk 0:00:04.6]} 65. Bc4+ {[%clk 0:00:10.3]}
65... Nd5 {[%clk 0:00:04.8]} 66. Bxd5+ {[%clk 0:00:10.7]} 66... Ke7 {[%clk
0:00:05.6]} 67. Qf6+ {[%clk 0:00:11.1]} 67... Kd7 {[%clk 0:00:05.5]} 68. Qc6+
{[%clk 0:00:11]} 68... Kd8 {[%clk 0:00:05.6]} 69. Qe6 {[%clk 0:00:11.6]} 69...
Kc7 {[%clk 0:00:05.8]} 70. b6+ {[%clk 0:00:11.6]} 70... Kb8 {[%clk 0:00:06.7]}
71. Qd6+ {[%clk 0:00:11.4]} 71... Kc8 {[%clk 0:00:06.7]} 72. b7# {[%clk
0:00:12]} 1-0

[Event "Late-Titled-Tuesday-Blitz-February-06-2024"]
[Site "Chess.com"]
[Date "2024.02.06"]
[Round "3"]
[White "Chessdreamer2020"]
[Black "ContrVersia"]
[Result "1/2-1/2"]
[WhiteElo "2566"]
[BlackElo "2848"]
[TimeControl "180+1"]
[EndTime "14:30:42 PST"]
[Termination "Game drawn by repetition"]

1. e4 {[%clk 0:03:00.5]} 1... c5 {[%clk 0:03:00.4]} 2. Nf3 {[%clk 0:03:00.4]}
2... a6 {[%clk 0:03:00.8]} 3. g3 {[%clk 0:02:59.8]} 3... b5 {[%clk 0:03:00.7]}
4. a4 {[%clk 0:02:59.2]} 4... Bb7 {[%clk 0:02:58.8]} 5. d3 {[%clk 0:02:55.4]}
5... e6 {[%clk 0:02:57.8]} 6. Bg2 {[%clk 0:02:51.2]} 6... Nc6 {[%clk 0:02:57.4]}
7. O-O {[%clk 0:02:51.5]} 7... d6 {[%clk 0:02:54]} 8. Na3 {[%clk 0:02:50.7]}
8... Qb6 {[%clk 0:02:50.2]} 9. Be3 {[%clk 0:02:49.8]} 9... Nf6 {[%clk
0:02:47.6]} 10. Re1 {[%clk 0:02:49.2]} 10... Be7 {[%clk 0:02:46.6]} 11. c3
{[%clk 0:02:48.6]} 11... O-O {[%clk 0:02:44.5]} 12. b4 {[%clk 0:02:45.5]} 12...
Ng4 {[%clk 0:02:44.6]} 13. bxc5 {[%clk 0:02:41.9]} 13... dxc5 {[%clk 0:02:45.5]}
14. Bf4 {[%clk 0:02:39.9]} 14... e5 {[%clk 0:02:23.3]} 15. Bc1 {[%clk 0:02:37]}
15... c4 {[%clk 0:02:20.1]} 16. d4 {[%clk 0:02:16.2]} 16... exd4 {[%clk
0:02:19.5]} 17. cxd4 {[%clk 0:02:17.1]} 17... Rad8 {[%clk 0:02:01.3]} 18. h3
{[%clk 0:02:16.7]} 18... Nge5 {[%clk 0:01:38.9]} 19. Be3 {[%clk 0:01:49.1]}
19... Nxf3+ {[%clk 0:01:34.9]} 20. Qxf3 {[%clk 0:01:42.9]} 20... Nxd4 {[%clk
0:01:35.1]} 21. Qg4 {[%clk 0:01:38.7]} 21... Qc6 {[%clk 0:01:22.8]} 22. axb5
{[%clk 0:01:38.2]} 22... axb5 {[%clk 0:01:22.9]} 23. Bxd4 {[%clk 0:00:58.3]}
23... Rxd4 {[%clk 0:01:23.8]} 24. Reb1 {[%clk 0:00:58.6]} 24... b4 {[%clk
0:00:58.1]} 25. Nc2 {[%clk 0:00:58.5]} 25... Rd2 {[%clk 0:00:58.4]} 26. Ne3
{[%clk 0:00:23]} 26... Qc5 {[%clk 0:00:55.6]} 27. Rf1 {[%clk 0:00:07.8]} 27...
Bc8 {[%clk 0:00:54.7]} 28. Qf4 {[%clk 0:00:07.5]} 28... Be6 {[%clk 0:00:54.2]}
29. Nf5 {[%clk 0:00:02.4]} 29... c3 {[%clk 0:00:47.4]} 30. Nxe7+ {[%clk
0:00:02.2]} 30... Qxe7 {[%clk 0:00:47.9]} 31. e5 {[%clk 0:00:02]} 31... b3
{[%clk 0:00:43.9]} 32. Rac1 {[%clk 0:00:02.2]} 32... Rc2 {[%clk 0:00:23]} 33.
Rxc2 {[%clk 0:00:02.4]} 33... bxc2 {[%clk 0:00:23.9]} 34. Be4 {[%clk 0:00:02.5]}
34... Bb3 {[%clk 0:00:19.5]} 35. Rc1 {[%clk 0:00:02]} 35... Qc5 {[%clk 0:00:11]}
36. Bxc2 {[%clk 0:00:02.3]} 36... Bxc2 {[%clk 0:00:10]} 37. Rxc2 {[%clk
0:00:03.2]} 37... h6 {[%clk 0:00:07.4]} 38. Qe3 {[%clk 0:00:03.5]} 38... Qxe3
{[%clk 0:00:05.8]} 39. fxe3 {[%clk 0:00:04.4]} 39... Rc8 {[%clk 0:00:06.4]} 40.
Kf2 {[%clk 0:00:04.8]} 40... Kf8 {[%clk 0:00:05.4]} 41. Ke2 {[%clk 0:00:05.3]}
41... Ke7 {[%clk 0:00:05.5]} 42. Kd3 {[%clk 0:00:06]} 42... Ke6 {[%clk
0:00:03.6]} 43. Rxc3 {[%clk 0:00:06.5]} 43... Rxc3+ {[%clk 0:00:03.3]} 44. Kxc3
{[%clk 0:00:07.4]} 44... Kxe5 {[%clk 0:00:03.6]} 45. Kd3 {[%clk 0:00:08.3]}
45... Kd5 {[%clk 0:00:03.8]} 46. e4+ {[%clk 0:00:08.2]} 46... Ke6 {[%clk
0:00:03.5]} 47. Ke3 {[%clk 0:00:08.2]} 47... Ke5 {[%clk 0:00:03.8]} 48. Kd3
{[%clk 0:00:08.7]} 48... g6 {[%clk 0:00:03.4]} 49. Ke3 {[%clk 0:00:09.1]} 49...
f6 {[%clk 0:00:03.3]} 50. Kd3 {[%clk 0:00:09.5]} 50... h5 {[%clk 0:00:03.6]} 51.
Ke3 {[%clk 0:00:08.9]} 51... g5 {[%clk 0:00:04.1]} 52. Kd3 {[%clk 0:00:08.6]}
52... Ke6 {[%clk 0:00:04.6]} 53. Kd4 {[%clk 0:00:08.7]} 53... Kd6 {[%clk
0:00:04.9]} 54. Ke3 {[%clk 0:00:08.9]} 54... Ke5 {[%clk 0:00:05.1]} 55. Kd3
{[%clk 0:00:09.5]} 55... Ke6 {[%clk 0:00:05.2]} 56. Kd4 {[%clk 0:00:09.8]} 56...
Kd6 {[%clk 0:00:05]} 57. Kd3 {[%clk 0:00:09.9]} 57... Kc5 {[%clk 0:00:05.3]} 58.
Kc3 {[%clk 0:00:09.8]} 58... Kd6 {[%clk 0:00:03.2]} 59. Kd4 {[%clk 0:00:10.2]}
59... Ke6 {[%clk 0:00:02.8]} 60. Kd3 {[%clk 0:00:10.3]} 60... Ke5 {[%clk
0:00:02.3]} 61. Ke3 {[%clk 0:00:10.8]} 61... g4 {[%clk 0:00:02.5]} 62. hxg4
{[%clk 0:00:10.8]} 62... hxg4 {[%clk 0:00:03.4]} 63. Kd3 {[%clk 0:00:11.2]}
63... Ke6 {[%clk 0:00:03.8]} 64. Kd4 {[%clk 0:00:11.5]} 64... Kd6 {[%clk
0:00:04.3]} 65. Kd3 {[%clk 0:00:11.6]} 65... Ke6 {[%clk 0:00:04.8]} 66. Ke3
{[%clk 0:00:12]} 66... Ke5 {[%clk 0:00:05.2]} 67. Kd3 {[%clk 0:00:12.5]} 67...
Ke6 {[%clk 0:00:05.7]} 1/2-1/2

[Event "Late-Titled-Tuesday-Blitz-February-06-2024"]
[Site "Chess.com"]
[Date "2024.02.06"]
[Round "3"]
[White "Dinamo3"]
[Black "mishanick"]
[Result "0-1"]
[WhiteElo "2522"]
[BlackElo "3056"]
[TimeControl "180+1"]
[EndTime "14:30:51 PST"]
[Termination "mishanick won by checkmate"]

1. c4 {[%clk 0:03:00.9]} 1... e6 {[%clk 0:02:59.9]} 2. Nf3 {[%clk 0:03:00.4]}
2... d5 {[%clk 0:03:00.5]} 3. e3 {[%clk 0:03:00.8]} 3... Nf6 {[%clk 0:03:00.3]}
4. b3 {[%clk 0:02:59.9]} 4... a5 {[%clk 0:02:57.7]} 5. Nc3 {[%clk 0:02:49.4]}
5... Bd7 {[%clk 0:02:52.2]} 6. Be2 {[%clk 0:02:46.5]} 6... Bb4 {[%clk
0:02:50.4]} 7. Bb2 {[%clk 0:02:44.5]} 7... O-O {[%clk 0:02:50.3]} 8. O-O {[%clk
0:02:44.1]} 8... Na6 {[%clk 0:02:48.6]} 9. a3 {[%clk 0:02:39.4]} 9... Be7 {[%clk
0:02:47.3]} 10. d4 {[%clk 0:02:34.5]} 10... c6 {[%clk 0:02:47.3]} 11. Ne5 {[%clk
0:02:34]} 11... Be8 {[%clk 0:02:47.1]} 12. Qc2 {[%clk 0:02:19.5]} 12... Nd7
{[%clk 0:02:47.2]} 13. Nd3 {[%clk 0:02:15.5]} 13... f5 {[%clk 0:02:46]} 14. f4
{[%clk 0:02:05.2]} 14... Nf6 {[%clk 0:02:44.9]} 15. Ne5 {[%clk 0:02:04.6]} 15...
Bd6 {[%clk 0:02:43.7]} 16. Kh1 {[%clk 0:01:49.6]} 16... Nb8 {[%clk 0:02:43.2]}
17. c5 {[%clk 0:01:43.8]} 17... Bc7 {[%clk 0:02:42.9]} 18. b4 {[%clk 0:01:43.8]}
18... Ne4 {[%clk 0:02:36]} 19. Nxe4 {[%clk 0:01:40.9]} 19... fxe4 {[%clk
0:02:33.9]} 20. Bg4 {[%clk 0:01:32.1]} 20... Qe7 {[%clk 0:02:33.8]} 21. Bc3
{[%clk 0:01:20.8]} 21... Nd7 {[%clk 0:02:32.9]} 22. h3 {[%clk 0:01:15.1]} 22...
Nf6 {[%clk 0:02:29.1]} 23. Be2 {[%clk 0:01:14.4]} 23... Bh5 {[%clk 0:02:18.3]}
24. g4 {[%clk 0:01:08.9]} 24... Be8 {[%clk 0:02:18.5]} 25. Qb2 {[%clk
0:01:04.1]} 25... Nd7 {[%clk 0:02:17.8]} 26. b5 {[%clk 0:01:02.8]} 26... Nxe5
{[%clk 0:02:15.5]} 27. fxe5 {[%clk 0:01:03.1]} 27... Rxf1+ {[%clk 0:02:10.6]}
28. Rxf1 {[%clk 0:01:04]} 28... Qg5 {[%clk 0:01:59.9]} 29. b6 {[%clk 0:00:56.3]}
29... Bd8 {[%clk 0:01:59.7]} 30. Qd2 {[%clk 0:00:53]} 30... h5 {[%clk
0:01:57.7]} 31. Bd1 {[%clk 0:00:46.3]} 31... Be7 {[%clk 0:01:47.4]} 32. Qf2
{[%clk 0:00:43.9]} 32... Bg6 {[%clk 0:01:42.9]} 33. Qg3 {[%clk 0:00:32.7]} 33...
Qh6 {[%clk 0:01:36.4]} 34. Kg1 {[%clk 0:00:30.6]} 34... Bg5 {[%clk 0:01:34.2]}
35. Bd2 {[%clk 0:00:30]} 35... Be7 {[%clk 0:01:29]} 36. gxh5 {[%clk 0:00:24.4]}
36... Bxh5 {[%clk 0:01:28.7]} 37. Bxh5 {[%clk 0:00:24.7]} 37... Qxh5 {[%clk
0:01:29.6]} 38. Qg4 {[%clk 0:00:25.4]} 38... Qh6 {[%clk 0:01:17.7]} 39. Kg2
{[%clk 0:00:24.8]} 39... a4 {[%clk 0:01:18.2]} 40. Qg3 {[%clk 0:00:20.5]} 40...
Bg5 {[%clk 0:01:16]} 41. Kh1 {[%clk 0:00:17.2]} 41... Re8 {[%clk 0:01:15.5]} 42.
Kg2 {[%clk 0:00:17.3]} 42... Re7 {[%clk 0:01:12.3]} 43. Kh1 {[%clk 0:00:17.5]}
43... Kh7 {[%clk 0:01:04.8]} 44. Kg2 {[%clk 0:00:17.8]} 44... Qh5 {[%clk
0:00:57.9]} 45. Qg4 {[%clk 0:00:17.7]} 45... Qh6 {[%clk 0:00:55.9]} 46. Qg3
{[%clk 0:00:16.6]} 46... g6 {[%clk 0:00:52.3]} 47. Kh1 {[%clk 0:00:16.6]} 47...
Kg7 {[%clk 0:00:52.2]} 48. Kg2 {[%clk 0:00:17]} 48... Rf7 {[%clk 0:00:52.1]} 49.
Rxf7+ {[%clk 0:00:16.8]} 49... Kxf7 {[%clk 0:00:53]} 50. Qf2+ {[%clk 0:00:17.2]}
50... Kg7 {[%clk 0:00:53.3]} 51. Qg3 {[%clk 0:00:15.5]} 51... Be7 {[%clk
0:00:52.4]} 52. Qg4 {[%clk 0:00:15.5]} 52... Kf7 {[%clk 0:00:53]} 53. Qg3 {[%clk
0:00:15.6]} 53... Qh5 {[%clk 0:00:51.4]} 54. Qg4 {[%clk 0:00:15.7]} 54... Qh8
{[%clk 0:00:52]} 55. Qf4+ {[%clk 0:00:15.8]} 55... Kg7 {[%clk 0:00:51.4]} 56.
Be1 {[%clk 0:00:14.6]} 56... g5 {[%clk 0:00:42.4]} 57. Qg4 {[%clk 0:00:14.4]}
57... Kf7 {[%clk 0:00:43]} 58. Bg3 {[%clk 0:00:13.4]} 58... Qa8 {[%clk
0:00:41.2]} 59. Qe2 {[%clk 0:00:13.3]} 59... Qa5 {[%clk 0:00:38.9]} 60. Be1
{[%clk 0:00:13.5]} 60... Qa8 {[%clk 0:00:39.2]} 61. Qh5+ {[%clk 0:00:13.6]}
61... Kg7 {[%clk 0:00:39.7]} 62. Qg4 {[%clk 0:00:14.1]} 62... Kf7 {[%clk
0:00:33.8]} 63. Qh5+ {[%clk 0:00:14.6]} 63... Kg7 {[%clk 0:00:34.4]} 64. Qg4
{[%clk 0:00:15.1]} 64... Qg8 {[%clk 0:00:35]} 65. h4 {[%clk 0:00:14.5]} 65...
Kf7 {[%clk 0:00:34.7]} 66. hxg5 {[%clk 0:00:14.6]} 66... Bxg5 {[%clk 0:00:35.3]}
67. Bf2 {[%clk 0:00:10.3]} 67... Qg6 {[%clk 0:00:34.6]} 68. Kf1 {[%clk 0:00:10]}
68... Qh6 {[%clk 0:00:35.1]} 69. Ke2 {[%clk 0:00:09.8]} 69... Ke7 {[%clk
0:00:31.3]} 70. Kd2 {[%clk 0:00:09.5]} 70... Kd7 {[%clk 0:00:29.3]} 71. Ke2
{[%clk 0:00:10]} 71... Be7 {[%clk 0:00:29.5]} 72. Qg3 {[%clk 0:00:09.8]} 72...
Qh1 {[%clk 0:00:27.9]} 73. Qg1 {[%clk 0:00:08.3]} 73... Qh8 {[%clk 0:00:25]} 74.
Qg4 {[%clk 0:00:06.9]} 74... Qa8 {[%clk 0:00:25.3]} 75. Qg7 {[%clk 0:00:04]}
75... Qa6+ {[%clk 0:00:23.8]} 76. Ke1 {[%clk 0:00:03.8]} 76... Qd3 {[%clk
0:00:22.2]} 77. Bg1 {[%clk 0:00:01.4]} 77... Qxa3 {[%clk 0:00:20.5]} 78. Kf2
{[%clk 0:00:02.3]} 78... Qb2+ {[%clk 0:00:19.9]} 79. Kg3 {[%clk 0:00:02.4]}
79... Qe2 {[%clk 0:00:20]} 80. Kf4 {[%clk 0:00:02.7]} 80... Qf3# {[%clk
0:00:19.9]} 0-1

[Event "Late-Titled-Tuesday-Blitz-February-06-2024"]
[Site "Chess.com"]
[Date "2024.02.06"]
[Round "3"]
[White "semchik73"]
[Black "biostatistician"]
[Result "1-0"]
[WhiteElo "2410"]
[BlackElo "2593"]
[TimeControl "180+1"]
[EndTime "14:30:53 PST"]
[Termination "semchik73 won by checkmate"]

1. Nf3 {[%clk 0:03:00.3]} 1... Nf6 {[%clk 0:02:59.1]} 2. c4 {[%clk 0:03:00.4]}
2... g6 {[%clk 0:02:57.2]} 3. d4 {[%clk 0:03:00.7]} 3... Bg7 {[%clk 0:02:56.8]}
4. Nc3 {[%clk 0:03:01.4]} 4... O-O {[%clk 0:02:55.9]} 5. e4 {[%clk 0:03:01.3]}
5... d6 {[%clk 0:02:54.5]} 6. Be2 {[%clk 0:03:01.5]} 6... e5 {[%clk 0:02:54.2]}
7. dxe5 {[%clk 0:03:01.7]} 7... dxe5 {[%clk 0:02:53.6]} 8. Bg5 {[%clk
0:03:02.3]} 8... Qe8 {[%clk 0:02:49.6]} 9. O-O {[%clk 0:02:57.4]} 9... c6 {[%clk
0:02:48.9]} 10. Qd6 {[%clk 0:02:55.9]} 10... Nbd7 {[%clk 0:02:44.5]} 11. Rfd1
{[%clk 0:02:51.3]} 11... h6 {[%clk 0:02:40.9]} 12. Bh4 {[%clk 0:02:48.2]} 12...
g5 {[%clk 0:01:50.6]} 13. Nxg5 {[%clk 0:02:25.1]} 13... hxg5 {[%clk 0:01:49.8]}
14. Bxg5 {[%clk 0:02:25.5]} 14... Qe6 {[%clk 0:01:47.7]} 15. Qc7 {[%clk
0:02:22.9]} 15... Ne8 {[%clk 0:01:30.8]} 16. Qa5 {[%clk 0:02:22.6]} 16... Qg6
{[%clk 0:01:25.8]} 17. Be7 {[%clk 0:02:22.4]} 17... Nef6 {[%clk 0:01:19.5]} 18.
Bxf8 {[%clk 0:02:21.1]} 18... Bxf8 {[%clk 0:01:17.4]} 19. Bf3 {[%clk 0:02:16.6]}
19... Bc5 {[%clk 0:01:15.5]} 20. Na4 {[%clk 0:02:09.8]} 20... Bd4 {[%clk
0:01:13.4]} 21. Qd8+ {[%clk 0:01:59.9]} 21... Kg7 {[%clk 0:01:10.7]} 22. h4
{[%clk 0:01:46.9]} 22... Nxe4 {[%clk 0:01:07.9]} 23. h5 {[%clk 0:01:16.6]} 23...
Qf5 {[%clk 0:00:46.6]} 24. h6+ {[%clk 0:00:46.1]} 24... Kxh6 {[%clk 0:00:45.9]}
25. Qh4+ {[%clk 0:00:41.6]} 25... Kg7 {[%clk 0:00:39.2]} 26. Qxe4 {[%clk
0:00:41.7]} 26... Qxe4 {[%clk 0:00:26.6]} 27. Bxe4 {[%clk 0:00:41.6]} 27... Nf6
{[%clk 0:00:27.2]} 28. Bf3 {[%clk 0:00:40.7]} 28... c5 {[%clk 0:00:26.1]} 29.
Nc3 {[%clk 0:00:38.4]} 29... Bf5 {[%clk 0:00:24.2]} 30. Re1 {[%clk 0:00:27.7]}
30... Re8 {[%clk 0:00:19.8]} 31. Ne4 {[%clk 0:00:26.2]} 31... b6 {[%clk
0:00:16.2]} 32. Nxf6 {[%clk 0:00:25.3]} 32... Kxf6 {[%clk 0:00:17.1]} 33. Re2
{[%clk 0:00:23]} 33... Kg5 {[%clk 0:00:14.5]} 34. Rae1 {[%clk 0:00:19.1]} 34...
f6 {[%clk 0:00:13.7]} 35. b3 {[%clk 0:00:18.2]} 35... Kf4 {[%clk 0:00:13]} 36.
Be4 {[%clk 0:00:17]} 36... Be6 {[%clk 0:00:11.7]} 37. g3+ {[%clk 0:00:15.6]}
37... Kg5 {[%clk 0:00:11.7]} 38. Kg2 {[%clk 0:00:15.2]} 38... f5 {[%clk
0:00:11.3]} 39. Bc6 {[%clk 0:00:11.3]} 39... Rc8 {[%clk 0:00:08.6]} 40. Bf3
{[%clk 0:00:09.7]} 40... e4 {[%clk 0:00:08.2]} 41. Bxe4 {[%clk 0:00:10]} 41...
fxe4 {[%clk 0:00:09.1]} 42. Rxe4 {[%clk 0:00:10.5]} 42... Bf5 {[%clk 0:00:09.4]}
43. Re8 {[%clk 0:00:08.9]} 43... Kf6 {[%clk 0:00:08.2]} 44. Rxc8 {[%clk
0:00:07.7]} 44... Bxc8 {[%clk 0:00:09.1]} 45. f4 {[%clk 0:00:07]} 45... Bb7+
{[%clk 0:00:08.7]} 46. Kh3 {[%clk 0:00:07.1]} 46... Kf7 {[%clk 0:00:09.1]} 47.
g4 {[%clk 0:00:06.8]} 47... a6 {[%clk 0:00:09.2]} 48. f5 {[%clk 0:00:06.3]}
48... b5 {[%clk 0:00:09.6]} 49. g5 {[%clk 0:00:05.4]} 49... bxc4 {[%clk
0:00:09.2]} 50. bxc4 {[%clk 0:00:05.1]} 50... a5 {[%clk 0:00:09]} 51. g6+ {[%clk
0:00:05.5]} 51... Kf6 {[%clk 0:00:08.3]} 52. g7 {[%clk 0:00:04.5]} 52... Kxg7
{[%clk 0:00:06.1]} 53. Re7+ {[%clk 0:00:03.7]} 53... Kf6 {[%clk 0:00:07]} 54.
Rxb7 {[%clk 0:00:03.8]} 54... Kxf5 {[%clk 0:00:07.9]} 55. Rb5 {[%clk 0:00:01.6]}
55... Ke4 {[%clk 0:00:08.1]} 56. Rxa5 {[%clk 0:00:01.7]} 56... Kd3 {[%clk
0:00:08.6]} 57. Ra4 {[%clk 0:00:01.6]} 57... Bc3 {[%clk 0:00:07]} 58. Kg4 {[%clk
0:00:01.9]} 58... Bb4 {[%clk 0:00:07.3]} 59. Kf5 {[%clk 0:00:01.9]} 59... Kxc4
{[%clk 0:00:07.5]} 60. Ke4 {[%clk 0:00:02.4]} 60... Kb5 {[%clk 0:00:02]} 61. Ra8
{[%clk 0:00:02.6]} 61... c4 {[%clk 0:00:02.6]} 62. a3 {[%clk 0:00:02.8]} 62...
Kc5 {[%clk 0:00:03.2]} 63. axb4+ {[%clk 0:00:02.2]} 63... Kb5 {[%clk 0:00:03.9]}
64. Kd4 {[%clk 0:00:02.1]} 64... Kxb4 {[%clk 0:00:04.8]} 65. Rc8 {[%clk
0:00:01.9]} 65... Kb5 {[%clk 0:00:03.2]} 66. Rxc4 {[%clk 0:00:02.4]} 66... Kb6
{[%clk 0:00:04.1]} 67. Rc5 {[%clk 0:00:02.8]} 67... Ka6 {[%clk 0:00:04.5]} 68.
Rh5 {[%clk 0:00:03.3]} 68... Kb6 {[%clk 0:00:05.4]} 69. Kc4 {[%clk 0:00:03.9]}
69... Kc6 {[%clk 0:00:06.3]} 70. Rh6+ {[%clk 0:00:04.4]} 70... Kd7 {[%clk
0:00:06.6]} 71. Kd5 {[%clk 0:00:04.9]} 71... Ke7 {[%clk 0:00:07.5]} 72. Ra6
{[%clk 0:00:04.9]} 72... Kf7 {[%clk 0:00:08.4]} 73. Ke5 {[%clk 0:00:05.3]} 73...
Kg7 {[%clk 0:00:09.3]} 74. Kf5 {[%clk 0:00:05.8]} 74... Kf7 {[%clk 0:00:10.2]}
75. Ra7+ {[%clk 0:00:05.8]} 75... Ke8 {[%clk 0:00:10.9]} 76. Ke6 {[%clk
0:00:06.1]} 76... Kd8 {[%clk 0:00:10.6]} 77. Rh7 {[%clk 0:00:06.1]} 77... Ke8
{[%clk 0:00:11.5]} 78. Rh8# {[%clk 0:00:06.2]} 1-0